fUSD/lending_fUSD_20240214
["ID","MTS","AMOUNT","RATE_DAILY","PERIOD"]
[314001568,1707921039252,-776.14782933,0.00034799,2]
[314001569,1707921039264,-457.48921368,0.00034896,7]
[314001570,1707921039274,-153.6,0.000349,2]
[314001571,1707921039287,-526.65608122,0.00034996,4]
[314001572,1707921039296,-196.44017534,0.00034996,4]
[314001573,1707921039306,-1178.71196968,0.00034996,4]
[314001574,1707921039316,-209.54413982,0.00034996,4]
[314001575,1707921039325,-156.86925065,0.00034996,4]
[314001576,1707921039335,-157.77962049,0.00034996,4]
[314001577,1707921039344,-288.93310823,0.00034996,4]
[314001578,1707921039354,-156.23139009,0.00034996,4]
[314001579,1707921039365,-686.27500614,0.00034996,4]
[314001580,1707921039375,-245.5740509,0.00034996,4]
[314001581,1707921039384,-211.13259107,0.00034996,4]
[314001582,1707921039394,-157.12127419,0.00034996,4]
[314001583,1707921039404,-257.41602689,0.00034996,4]
[314001584,1707921039414,-2917.1567655,0.00034996,4]
[314001585,1707921039423,-190.0,0.00034996,4]
[314001586,1707921039432,-1083.16135425,0.00034996,4]
[314001587,1707921039441,-302.11236896,0.00034996,4]
[314001588,1707921039451,-158.00253832,0.00034996,4]
[314001589,1707921039461,-234.16407337,0.00034996,4]
[314001590,1707921039471,-155.0,0.00034996,4]
[314001591,1707921039482,-311.79750185,0.00034996,4]
[314001592,1707921039491,-202.41033406,0.00034997,4]
[314001593,1707921039501,-155.76233207,0.00034998,4]
[314001594,1707921039510,-363.59759485,0.00034998,4]
[314001595,1707921039520,-219.15468149,0.00034998,4]
[314001596,1707921039530,-155.0,0.00034998,4]
[314001597,1707921039540,-545.87787865,0.00034998,4]
[314001598,1707921039550,-537.396374,0.00034998,4]
[314001599,1707921039559,-155.0,0.00034998,4]
[314001600,1707921039569,-229.57746302,0.00034998,4]
[314001601,1707921039578,-1056.08448532,0.00034998,4]
[314001602,1707921039588,-475.81552691,0.00034998,4]
[314001603,1707921039598,-155.22142198,0.00034998,4]
[314001604,1707921039607,-315.93907995,0.00034998,4]
[314001605,1707921039616,-8511.91445576,0.00034999,2]
[314001606,1707921039626,-100000.0,0.00035,15]
[314001607,1707921039635,-74530.12636012,0.00035,4]
[314001608,1707921039645,-237.24,0.00035216,2]
[314001609,1707921039654,-457.48921368,0.00035572,7]
[314001610,1707921039664,-631.9934,0.00035897,2]
[314001611,1707921039673,-1491.80125822,0.000359,2]
[314001612,1707921039683,-540.28513236,0.000359,2]
[314001613,1707921039692,-169.26,0.00035901,2]
[314001614,1707921039702,-1000.0,0.00035973,2]
[314001615,1707921039711,-250.0,0.0003599,2]
[314001616,1707921039721,-389.23841484,0.00035997,4]
[314001617,1707921039732,-766.92032321,0.00035997,4]
[314001618,1707921039742,-818.92618057,0.00035997,4]
[314001619,1707921039752,-13140.53337378,0.00035997,4]
[314001620,1707921039761,-17425.75936267,0.00035997,4]
[314001621,1707921039772,-1270.31366899,0.00035997,4]
[314001622,1707921039781,-9011.25513995,0.00035997,4]
[314001623,1707921039790,-910.73661852,0.00035997,4]
[314001624,1707921039800,-449.5592499,0.00035997,4]
[314001625,1707921039809,-155.0,0.00035997,4]
[314001626,1707921039818,-133973.05844519,0.00035999,4]
[314001627,1707921039870,-2731.02565775,0.00035999,4]
[314001631,1707921041033,-585.61698951,0.00024624,2]
[314001632,1707921041042,-1051.50955881,0.00024625,2]
[314001633,1707921041052,-8978.48641425,0.00035999,4]
[314001634,1707921041064,-1273.08500004,0.00035999,4]
[314001745,1707921042758,-155.0,0.00024624,2]
[314001746,1707921042769,-301.6805457,0.00035999,4]
[314001747,1707921042780,-659.53362065,0.00035999,4]
[314001748,1707921042942,-500.0,0.00035999,4]
[314001749,1707921043084,-586.05266528,0.00035998,4]
[314001750,1707921043093,-858.5423825,0.00035999,4]
[314001751,1707921043105,-5998.35973722,0.00035999,4]
[314001752,1707921043116,-2398.57494127,0.00035999,4]
[314001753,1707921043128,-3430.52119853,0.00035999,4]
[314001762,1707921045737,-0.21159829,0.00035853,4]
[314001763,1707921045749,-628.79743495,0.00035853,4]
[314001764,1707921045759,-422.72810133,0.00035854,2]
[314001765,1707921045775,-1075.41214638,0.00035854,2]
[314001766,1707921045787,-621.80975229,0.00035854,2]
[314001767,1707921045796,-5556.00652958,0.00035999,4]
[314001768,1707921045808,-5367.62452603,0.00035999,4]
[314001769,1707921045817,-20444.37547398,0.00036,16]
[314001770,1707921045851,-393.46815147,0.00036,16]
[314001771,1707921046043,-11591.91990107,0.00036,16]
[314001773,1707921046462,-521.93838146,0.00036,16]
[314001774,1707921046475,-255.17551562,0.00036,16]
[314001775,1707921046494,-7602.4124577,0.00036,16]
[314001776,1707921046725,-59190.7101187,0.00036,16]
[314001777,1707921046735,-153.30214944,0.00036,2]
[314001778,1707921046745,-776.14782933,0.0003606,2]
[314001779,1707921046754,-457.48921368,0.00036247,7]
[314001780,1707921046763,-153.6,0.000363,3]
[314001781,1707921046773,-849.38780095,0.00036612,9]
[314001782,1707921046783,-151.8676074,0.00036612,2]
[314001783,1707921046793,-199.83,0.00036624,2]
[314001784,1707921046803,-1000.0,0.000367,2]
[314001785,1707921046812,-13823.84200531,0.00036711,4]
[314001786,1707921046822,-21612.34406701,0.00036712,3]
[314001787,1707921546017,-364.58258095,0.00024428,2]
[314001788,1707921546038,-154.9038377,0.00024429,2]
[314001789,1707921546058,-155.0,0.00024525,2]
[314001790,1707921546077,-945.90283649,0.00024525,2]
[314001791,1707921546099,-155.0,0.00024526,2]
[314001792,1707921546119,-626.56955567,0.00024526,2]
[314001793,1707921546139,-500.0,0.00024527,2]
[314001794,1707921546162,-6476.11087818,0.00024527,2]
[314001795,1707921546184,-1379.55653244,0.00024528,2]
[314001796,1707921546205,-212.96144381,0.00024529,2]
[314001797,1707921546231,-420.51851356,0.00024529,2]
[314001798,1707921546252,-264.96909026,0.00024529,2]
[314001799,1707921546272,-3698.4956325,0.0002453,4]
[314001800,1707921546293,-179.5828,0.00024534,2]
[314001801,1707921546313,-622.34433217,0.00024635,2]
[314001802,1707921546334,-201.15,0.000251,2]
[314001803,1707921546354,-4195.16,0.000251,2]
[314001804,1707921546376,-499.99,0.000251,2]
[314001805,1707921546405,-208.17,0.00025154,2]
[314001806,1707921546429,-154.90383765,0.00025208,2]
[314001807,1707921546450,-150.31,0.00025343,2]
[314001808,1707921546471,-150.31,0.00025475,2]
[314001809,1707921546492,-150.31,0.00025607,2]
[314001810,1707921546514,-150.31,0.00025739,2]
[314001811,1707921546537,-150.31,0.00025871,2]
[314001812,1707921546559,-154.90383765,0.00025986,2]
[314001813,1707922034147,-500.0,0.00024997,2]
[314001814,1707922034167,-264.96909026,0.00024998,2]
[314001815,1707922034188,-945.90283649,0.00024999,2]
[314001816,1707922034210,-3000.0,0.00025,2]
[314001817,1707922034231,-3000.0,0.0002501,2]
[314001818,1707922034254,-3000.0,0.0002502,2]
[314001819,1707922034275,-3000.0,0.0002503,2]
[314001820,1707922034296,-3000.0,0.0002504,2]
[314001821,1707922034316,-3000.0,0.0002505,2]
[314001822,1707922034339,-3000.0,0.0002506,2]
[314001823,1707922034362,-3000.0,0.0002507,2]
[314001824,1707922034383,-3000.0,0.0002508,2]
[314001825,1707922034402,-1795.11,0.0002508,2]
[314001826,1707922034422,-499.99,0.0002508,2]
[314001827,1707922034441,-11243.77,0.0002508,2]
[314001828,1707922034460,-168.62,0.00025089,2]
[314001829,1707922034480,-3000.0,0.0002509,2]
[314001830,1707922034500,-3000.0,0.000251,2]
[314001831,1707922034521,-3000.0,0.0002511,2]
[314001832,1707922034543,-3000.0,0.0002512,2]
[314001833,1707922034565,-3000.0,0.0002513,2]
[314001834,1707922034587,-3000.0,0.0002514,2]
[314001835,1707922034609,-3000.0,0.0002515,2]
[314001836,1707922034628,-3000.0,0.0002516,2]
[314001837,1707922034652,-3000.0,0.0002517,2]
[314001838,1707922034673,-3263.261608,0.0002518,2]
[314001839,1707922034692,-1188.68,0.00025755,2]
[314001840,1707922034711,-625.90252472,0.00025885,2]
[314001841,1707922034732,-25710.59492067,0.00025985,2]
[314001842,1707922034753,-155.0,0.00025986,2]
[314001843,1707922034774,-239.91486415,0.00025986,2]
[314001844,1707922034795,-155.0,0.00025986,2]
[314001845,1707922034816,-2609.07512197,0.00025986,2]
[314001846,1707922034838,-512.06274968,0.00025986,2]
[314001847,1707922034863,-200.0,0.00025986,2]
[314001848,1707922034884,-250.0,0.00027047,2]
[314001849,1707922034906,-3075.8,0.00027047,2]
[314001850,1707922034926,-2079.19893848,0.00027885,28]
[314001851,1707922034946,-1044.35236561,0.00028479,2]
[314001852,1707922034966,-1256.25370781,0.00028479,2]
[314001853,1707922034990,-11159.35340675,0.0002848,7]
[314001854,1707922035011,-6015.02108869,0.0002848,7]
[314001855,1707922035034,-26460.94289387,0.0002848,7]
[314001856,1707922152127,-300.0,0.00024897,2]
[314001857,1707922152148,-154.90383765,0.00025886,2]
[314001858,1707922152496,-945.90283649,0.00025985,2]
[314001859,1707922152517,-1712.82960604,0.00025986,2]
[314001860,1707922165108,-895.21333702,0.00025986,2]
[314001861,1707922165127,-155.0,0.00025986,2]
[314001862,1707922165148,-154.90383765,0.00026732,2]
[314001863,1707922165171,-154.90383765,0.00027578,2]
[314001864,1707922165191,-5055.15,0.0002838,2]
[314001865,1707922165213,-154.90383765,0.00028424,2]
[314001866,1707922165231,-506.70255148,0.00028479,2]
[314001867,1707922165251,-292.01625046,0.00028479,2]
[314001868,1707922165269,-162.79454632,0.00028479,2]
[314001869,1707922165291,-51847.78410334,0.0002848,7]
[314001885,1707922231903,-312.37220644,0.00025985,2]
[314001886,1707922231915,-279.07894073,0.00025985,2]
[314001887,1707922231924,-500.0,0.00026523,2]
[314001888,1707922231933,-300.0,0.00026524,2]
[314001889,1707922231942,-324.62770337,0.00027056,2]
[314001890,1707922231952,-300.0,0.00027894,2]
[314001891,1707922231961,-317.98918941,0.00028479,2]
[314001892,1707922231970,-4044.08537255,0.0002848,7]
[314001893,1707922232022,-340.1393542,0.0002848,7]
[314001894,1707922232033,-1015.73451253,0.0002848,7]
[314001895,1707922232045,-6405.36538002,0.0002848,7]
[314001896,1707922232057,-4947.46912455,0.0002848,7]
[314001897,1707922232066,-6711.282,0.0002848,2]
[314001898,1707922232075,-199.92905346,0.0002848,2]
[314001899,1707922232085,-19209.75630143,0.0002848,7]
[314001900,1707922232094,-154.90383765,0.00029271,2]
[314001901,1707922232103,-155.0,0.0003,2]
[314001902,1707922232112,-154.90383765,0.00030117,2]
[314001903,1707922232122,-208.17,0.00030185,2]
[314001904,1707922232131,-154.90383765,0.00030963,2]
[314001905,1707922232141,-2627.28918547,0.00031025,4]
[314001906,1707922232150,-833.61011147,0.00031025,3]
[314001907,1707922232159,-297.92427807,0.00031025,3]
[314001908,1707922232169,-234.52873494,0.00031025,3]
[314001909,1707922232178,-433.125,0.00031025,4]
[314001910,1707922232187,-384.43051098,0.00031025,4]
[314001911,1707922232196,-1984.59274952,0.00031025,4]
[314001912,1707922232205,-252.36385873,0.00031025,4]
[314001914,1707922232214,-150.99,0.00031025,2]
[314001916,1707922232224,-250.0,0.00031191,2]
[314001918,1707922232233,-281.07,0.00031229,2]
[314001920,1707922232243,-152.55,0.00031299,2]
[314001922,1707922232253,-153.44,0.00031309,2]
[314001924,1707922232265,-166.11,0.00031518,2]
[314001926,1707922232275,-154.90383765,0.00031809,2]
[314001928,1707922232285,-250.0,0.00031848,2]
[314001930,1707922232295,-470.12,0.00031854,2]
[314001932,1707922232305,-500.0,0.00031918,2]
[314001934,1707922232315,-165.82,0.00032165,2]
[314001936,1707922232325,-500.0,0.00032175,2]
[314001938,1707922232335,-1000.0,0.00032331,2]
[314001940,1707922232345,-154.90383765,0.00032655,2]
[314001942,1707922232355,-153.38,0.00032877,2]
[314001944,1707922232364,-158.81891053,0.0003304,2]
[314001946,1707922232374,-536.26,0.00033046,2]
[314001948,1707922232384,-200.0,0.00033225,2]
[314001950,1707922232393,-2938.0,0.000334,2]
[314001952,1707922232402,-472.26816907,0.000334,2]
[314001954,1707922232413,-2881.4614838,0.0003349,2]
[314001956,1707922232422,-470.12,0.00033498,2]
[314001958,1707922232432,-813.84030396,0.000335,2]
[314001963,1707922232465,-622.67114989,0.000335,2]
[314001965,1707922232477,-5605.32851942,0.000335,2]
[314001968,1707922232493,-1158.68476504,0.000335,2]
[314002023,1707922237903,-358.33485164,0.000329,2]
[314002024,1707922237915,-370.60310029,0.000329,2]
[314002025,1707922238026,-1271.06204807,0.000329,2]
[314002026,1707922238037,-1665.03749617,0.000335,2]
[314002027,1707922238081,-2024.7921918,0.000335,2]
[314002028,1707922238092,-16851.64557372,0.000335,2]
[314002029,1707922238102,-1460.05,0.000335,2]
[314002030,1707922238111,-1460.05,0.000335,2]
[314002031,1707922238120,-1460.05,0.000335,2]
[314002032,1707922238130,-1460.05,0.000335,2]
[314002033,1707922238139,-1460.05,0.000335,2]
[314002034,1707922238149,-1460.05,0.000335,2]
[314002035,1707922238158,-1460.05,0.000335,2]
[314002036,1707922238167,-1460.05,0.000335,2]
[314002037,1707922238176,-1460.05,0.000335,2]
[314002038,1707922238186,-1460.05,0.000335,2]
[314002039,1707922238195,-1460.05,0.000335,2]
[314002040,1707922238204,-1460.05,0.000335,2]
[314002041,1707922238214,-1460.05,0.000335,2]
[314002042,1707922238223,-1460.05,0.000335,2]
[314002043,1707922238233,-1460.05,0.000335,2]
[314002044,1707922238242,-1460.05,0.000335,2]
[314002045,1707922238252,-1460.05,0.000335,2]
[314002046,1707922238261,-1460.05,0.000335,2]
[314002047,1707922238273,-1460.05,0.000335,2]
[314002048,1707922238282,-1460.05,0.000335,2]
[314002049,1707922238292,-154.90383765,0.00033501,2]
[314002050,1707922238301,-153.24,0.00033686,2]
[314002051,1707922238311,-166.11,0.00033781,2]
[314002052,1707922238321,-206.0,0.00033809,2]
[314002053,1707922238331,-2065.81,0.00033844,2]
[314002054,1707922238341,-11868.17,0.00033844,2]
[314002055,1707922238350,-1339.21,0.00033844,2]
[314002057,1707922238360,-153.24,0.00033906,2]
[314002059,1707922238369,-153.24,0.00034125,2]
[314002061,1707922238378,-153.24,0.00034344,2]
[314002063,1707922238388,-154.90383765,0.00034348,2]
[314002065,1707922238396,-153.24,0.00034564,2]
[314002067,1707922238405,-167.0,0.000346,2]
[314002069,1707922238414,-472.26816906,0.00034714,2]
[314002071,1707922238424,-984.0964221,0.00034744,7]
[314002073,1707922238433,-153.24,0.00034783,2]
[314002075,1707922238442,-21470.52125988,0.0003479,2]
[314002077,1707922238451,-21470.52125985,0.0003479,2]
[314002079,1707922238460,-286.46790622,0.00034799,2]
[314002081,1707922238473,-29675.78234415,0.00034799,2]
[314002083,1707922238482,-29962.25025032,0.00034799,2]
[314002085,1707922238491,-7404.60461707,0.00034844,2]
[314002102,1707922238857,-14065.91664278,0.00034844,2]
[314002103,1707922238867,-29962.25025032,0.00034844,2]
[314002104,1707922238877,-1460.05,0.000349,2]
[314002105,1707922238887,-1460.05,0.000349,2]
[314002106,1707922238896,-1460.05,0.000349,2]
[314002107,1707922238906,-1460.05,0.000349,2]
[314002108,1707922238916,-1460.05,0.000349,2]
[314002109,1707922238926,-1460.05,0.000349,2]
[314002110,1707922238935,-1460.05,0.000349,2]
[314002111,1707922238946,-1460.05,0.000349,2]
[314002112,1707922238956,-1460.05,0.000349,2]
[314002113,1707922238965,-1460.05,0.000349,2]
[314002114,1707922238975,-1460.05,0.000349,2]
[314002115,1707922238985,-1460.05,0.000349,2]
[314002116,1707922238996,-1460.05,0.000349,2]
[314002117,1707922239006,-1460.05,0.000349,2]
[314002118,1707922239019,-1460.05,0.000349,2]
[314002119,1707922239028,-1460.05,0.000349,2]
[314002120,1707922239038,-1460.05,0.000349,2]
[314002121,1707922239048,-1460.05,0.000349,2]
[314002122,1707922239059,-1460.05,0.000349,2]
[314002123,1707922239069,-1460.05,0.000349,2]
[314002124,1707922239078,-5685.0,0.00035,15]
[314002125,1707922239088,-153.24,0.00035003,2]
[314002126,1707922239098,-500.0,0.0003509,7]
[314002127,1707922239107,-1000.0,0.000351,2]
[314002128,1707922239116,-470.12,0.00035142,2]
[314002129,1707922239126,-154.90383765,0.00035194,2]
[314002130,1707922239135,-153.24,0.00035222,2]
[314002131,1707922239144,-984.09642205,0.00035334,7]
[314002132,1707922239153,-1253.87297925,0.00035346,3]
[314002133,1707922239163,-153.24,0.00035442,2]
[314002134,1707922239172,-21470.52125985,0.00035567,2]
[314002135,1707922239181,-29962.25025032,0.00035567,2]
[314002136,1707922239190,-206.0,0.00035824,6]
[314002137,1707922239199,-622.49852888,0.00035836,5]
[314002138,1707922239209,-946.31124793,0.00035836,4]
[314002139,1707922239509,-1909.75102483,0.00035836,4]
[314002140,1707922239525,-159.89262524,0.00035836,4]
[314002141,1707922239536,-168.26749515,0.00035836,4]
[314002142,1707922239546,-1592.09246113,0.00035837,2]
[314002143,1707922239555,-7140.45759778,0.00035838,4]
[314002144,1707922239566,-1414.51796317,0.00035838,4]
[314002145,1707922239576,-416.90747083,0.00035839,4]
[314002146,1707922239586,-755.82484212,0.00035839,4]
[314002147,1707922239595,-10089.27686147,0.00035839,2]
[314002148,1707922239606,-318.31468357,0.0003584,4]
[314002149,1707922239615,-984.09642205,0.00035924,7]
[314002150,1707922239625,-177.3,0.0003599,2]
[314002151,1707922239635,-282.19441718,0.0003599,2]
[314002152,1707922239645,-311.62537752,0.00035999,4]
[314002153,1707922239655,-50000.0,0.00036,16]
[314002154,1707922239664,-2000.0,0.00036,3]
[314002155,1707922239673,-179.37803628,0.00036,2]
[314002156,1707922239683,-154.90383765,0.0003604,2]
[314002157,1707922239693,-166.11,0.00036045,2]
[314002158,1707922239702,-500.0,0.00036186,7]
[314002159,1707922239712,-153.38,0.00036211,2]
[314002160,1707922239722,-154.0,0.00036244,7]
[314002161,1707922239732,-21470.52125985,0.00036289,2]
[314002162,1707922239741,-24306.57701588,0.00036289,2]
[314002164,1707922240250,-384.925,0.00036289,2]
[314002165,1707922240268,-4407.12441718,0.00036289,2]
[314002166,1707922240303,-200.0,0.00034084,2]
[314002167,1707922240313,-863.62381726,0.00036289,2]
[314002168,1707922240322,-1554.9534969,0.0003629,10]
[314002169,1707922240333,-1460.05,0.000363,3]
[314002170,1707922240343,-1460.05,0.000363,3]
[314002171,1707922240353,-1460.05,0.000363,3]
[314002172,1707922240364,-1460.05,0.000363,3]
[314002173,1707922240375,-1460.05,0.000363,3]
[314002174,1707922240385,-1460.05,0.000363,3]
[314002175,1707922240395,-1460.05,0.000363,3]
[314002176,1707922240405,-1460.05,0.000363,3]
[314002177,1707922240414,-1460.05,0.000363,3]
[314002178,1707922240424,-1460.05,0.000363,3]
[314002180,1707922240434,-1460.05,0.000363,3]
[314002181,1707922240443,-1460.05,0.000363,3]
[314002182,1707922240453,-1460.05,0.000363,3]
[314002183,1707922240463,-1460.05,0.000363,3]
[314002184,1707922240472,-1460.05,0.000363,3]
[314002185,1707922240482,-1460.05,0.000363,3]
[314002186,1707922240491,-1460.05,0.000363,3]
[314002187,1707922240501,-1460.05,0.000363,3]
[314002188,1707922240510,-1460.05,0.000363,3]
[314002189,1707922240523,-1232.5313271,0.000363,3]
[314002190,1707922240535,-227.5186729,0.000363,3]
[314002191,1707922240545,-1316.3651,0.0003633,2]
[314002192,1707922240554,-777.47674845,0.00036334,10]
[314002193,1707922240563,-283.52909421,0.00036344,4]
[314002194,1707922240573,-745.0,0.00036345,2]
[314002195,1707922240582,-1000.0,0.00036372,2]
[314002196,1707922240592,-187.94189636,0.00036412,2]
[314002197,1707922240602,-777.47674845,0.0003649,10]
[314002198,1707922240611,-648.55590771,0.000365,20]
[314002199,1707922240623,-4351.44409229,0.000365,20]
[314002200,1707922240632,-827.00571811,0.000365,2]
[314002201,1707922240645,-405.38304937,0.000365,2]
[314002202,1707922240655,-219.67679758,0.00036501,10]
[314002203,1707922240666,-317.13206227,0.00036501,10]
[314002204,1707922240678,-3350.5748824,0.00036501,10]
[314002205,1707922240688,-364.17058099,0.00036509,4]
[314002206,1707922240697,-2677.30126049,0.00036509,4]
[314002207,1707922240706,-47.55918303,0.00036509,4]
[314002208,1707922240719,-111.35938582,0.00036509,4]
[314002209,1707922240729,-1089.01525469,0.00036509,4]
[314002210,1707922240738,-204.49097889,0.00036509,4]
[314002211,1707922240748,-517.78567072,0.00036509,4]
[314002212,1707922240758,-274.91929749,0.0003651,4]
[314002213,1707922240770,-549.78763354,0.0003651,4]
[314002214,1707922240779,-420.0297916,0.0003651,4]
[314002215,1707922240789,-1156.82895164,0.0003651,4]
[314002216,1707922240799,-159.7622,0.00036511,2]
[314002217,1707922240809,-3421.4410651,0.00036511,2]
[314002218,1707922240829,-6375.05121426,0.00036511,2]
[314002219,1707922240842,-15016.443398,0.00036511,2]
[314002220,1707922240854,-8954.0964,0.00036511,2]
[314002221,1707922240867,-7657.64722264,0.00036511,2]
[314002222,1707922240877,-10784.423,0.00036511,2]
[314002223,1707922240894,-984.09642205,0.00036514,8]
[314002224,1707922240903,-150.0,0.00036532,2]
[314002225,1707922240913,-180.0,0.00036535,2]
[314002226,1707922240923,-354.3,0.00036538,2]
[314002227,1707922240933,-152.0,0.00036565,3]
[314002228,1707922240943,-302.781795,0.000366,10]
[314002229,1707922240953,-4969.63718674,0.00036601,10]
[314002230,1707922240969,-1250.17680086,0.00036601,10]
[314002231,1707922240978,-29121.59577319,0.00036611,2]
[314002232,1707922241406,-500.0,0.0003,2]
[314002233,1707922241419,-2092.45,0.00036611,2]
[314002259,1707922242947,-11963.80168778,0.00036611,2]
[314002260,1707922242959,-2026.86829742,0.00036611,2]
[314002261,1707922243127,-378.74725813,0.00036611,2]
[314002262,1707922243245,-1396.13933256,0.00036611,2]
[314002263,1707922243260,-48265.32425092,0.00036611,2]
[314002264,1707922243271,-3465.5295,0.00036611,2]
[314002265,1707922243280,-1000.0,0.00036611,2]
[314002266,1707922243289,-648.2561,0.00036611,2]
[314002268,1707922243298,-500.0,0.00036612,2]
[314002269,1707922243307,-160.46331719,0.00036612,9]
[314002270,1707922243317,-4495.17936676,0.00036612,9]
[314002271,1707922243327,-151.8676074,0.00036612,2]
[314002272,1707922243336,-472.4141,0.00036612,2]
[314002273,1707922243345,-4536.4346,0.00036612,2]
[314002274,1707922243356,-210.0,0.00036612,2]
[314002277,1707922243365,-5000.0,0.00036612,3]
[314002278,1707922243375,-2319.8551,0.00036612,3]
[314002279,1707922243385,-29394.49130038,0.000367,4]
[314002280,1707922243394,-521.06063883,0.00036709,4]
[314002281,1707922243403,-246.48359676,0.00036709,4]
[314002282,1707922243413,-191.15944048,0.00036709,4]
[314002283,1707922243422,-1358.30245161,0.00036709,2]
[314002285,1707922243431,-233.793317,0.00036709,4]
[314002287,1707922243441,-157.67339788,0.00036709,4]
[314002289,1707922243450,-155.0,0.00036709,4]
[314002291,1707922243460,-307.313967,0.00036709,4]
[314002293,1707922243469,-156.15208998,0.00036709,4]
[314002296,1707922243478,-1083.6033181,0.00036709,4]
[314002298,1707922243487,-175.60225251,0.00036709,4]
[314002299,1707922243497,-184.60904828,0.00036709,4]
[314002302,1707922243506,-191.19015391,0.00036709,4]
[314002303,1707922243517,-156.34299986,0.00036709,4]
[314002305,1707922243526,-235.34498503,0.00036709,4]
[314002308,1707922243536,-167.39387378,0.00036709,2]
[314002310,1707922243546,-198.31923349,0.00036709,2]
[314002312,1707922243555,-14655.22209398,0.00036709,4]
[314002314,1707922243564,-5438.49679006,0.0003671,2]
[314002316,1707922243573,-3044.7055425,0.0003671,4]
[314002317,1707922243582,-416.57190612,0.0003671,4]
[314002318,1707922243591,-2811.13931703,0.00036711,4]
[314002319,1707922243600,-162.58470932,0.00036711,4]
[314002322,1707922243612,-2356.87104141,0.00036711,4]
[314002323,1707922243621,-6273.24822971,0.00036711,4]
[314002326,1707922243630,-1103.11023493,0.00036711,4]
[314002328,1707922243642,-1841.9004143,0.00036711,2]
[314002330,1707922243651,-192.67284687,0.00036711,4]
[314002332,1707922243660,-1187.68796375,0.00036711,4]
[314002333,1707922243669,-432.00453614,0.00036711,4]
[314002336,1707922243679,-155.0,0.00036711,4]
[314002337,1707922243687,-402.59161886,0.00036711,4]
[314002340,1707922243697,-43726.55489698,0.00036711,4]
[314002341,1707922243706,-4362.09295512,0.00036711,4]
[314002344,1707922243727,-50861.76174993,0.00036711,4]
[314002345,1707922243737,-4132.64095307,0.00036712,3]
[314002346,1707922243751,-121707.98038978,0.00036712,3]
[314002347,1707922243760,-150.21247349,0.00036712,3]
[314002348,1707922243770,-408.81109882,0.00036712,2]
[314002349,1707922243779,-503.38713752,0.00036712,2]
[314002350,1707922243789,-500.0,0.00036712,2]
[314002351,1707922243799,-500.08,0.00036712,2]
[314002352,1707922243808,-806.52739813,0.00036712,2]
[314002353,1707922243817,-646.35681455,0.00036712,2]
[314002354,1707922243827,-500.0,0.00036712,2]
[314002355,1707922243837,-500.0,0.00036712,2]
[314002356,1707922243846,-546.23,0.00036712,2]
[314002357,1707922243856,-500.0,0.00036712,2]
[314002358,1707922243866,-500.0,0.00036712,2]
[314002359,1707922243875,-500.0,0.00036712,2]
[314002360,1707922243885,-500.0,0.00036712,2]
[314002361,1707922243895,-500.0,0.00036712,2]
[314002362,1707922243904,-500.0,0.00036712,2]
[314002363,1707922243914,-500.0,0.00036712,2]
[314002364,1707922243924,-500.0,0.00036712,2]
[314002365,1707922243935,-500.0,0.00036712,2]
[314002366,1707922243944,-528.28447462,0.00036712,2]
[314002367,1707922243954,-500.0,0.00036712,2]
[314002368,1707922243964,-500.0,0.00036712,2]
[314002369,1707922243973,-507.87441487,0.00036712,2]
[314002370,1707922243983,-500.0,0.00036712,2]
[314002371,1707922243993,-500.0,0.00036712,2]
[314002372,1707922244003,-500.0,0.00036712,2]
[314002373,1707922244012,-500.0,0.00036712,2]
[314002374,1707922244024,-500.0,0.00036712,2]
[314002375,1707922244033,-500.0,0.00036712,2]
[314002376,1707922244042,-500.0,0.00036712,2]
[314002377,1707922244052,-500.0,0.00036712,2]
[314002378,1707922244061,-434.53436059,0.00036712,2]
[314002379,1707922244071,-535.31,0.00036712,2]